bitfinex/quotes_BTCUSD_20230906
["timestamp","ask_amount","ask_price","bid_price","bid_amount"]
[1694021364384,0.24254282,25668.0,25667.0,0.39564527]
[1694021364745,2.61575907,25668.0,25667.0,0.009]
[1694021365392,2.61575907,25668.0,25667.0,0.004]
[1694021365611,2.61575907,25668.0,25660.0,0.0315274]
[1694021365612,0.77926,25666.0,25660.0,0.0315274]
[1694021365816,0.1626,25664.0,25661.0,0.38664527]
[1694021366037,0.28115067,25664.0,25661.0,0.38664527]
[1694021366397,0.3226,25664.0,25661.0,0.38664527]
[1694021367000,0.44115067,25664.0,25661.0,0.38664527]
[1694021367207,1.881204,25664.0,25662.0,0.1]
[1694021367425,1.101901,25664.0,25662.0,0.1]
[1694021367625,0.01462288,25663.0,25662.0,0.1]
[1694021368075,0.31378288,25663.0,25662.0,0.1]
[1694021369278,0.01462288,25663.0,25662.0,0.1]
[1694021369489,1.08333793,25663.0,25662.0,0.1]
[1694021369684,1.57328688,25663.0,25662.0,0.1]
[1694021369909,1.82623643,25663.0,25662.0,0.1]
[1694021370087,1.69183755,25663.0,25662.0,0.1]
[1694021370285,3.23495088,25663.0,25662.0,0.1]
[1694021371305,2.45561888,25663.0,25662.0,0.1]
[1694021371727,2.45561888,25663.0,25662.0,0.102]
[1694021371728,2.46561888,25663.0,25662.0,0.102]
[1694021372130,0.12762288,25663.0,25662.0,0.102]
[1694021372338,0.38312382,25663.0,25662.0,0.102]
[1694021372544,1.16245582,25663.0,25662.0,0.102]
[1694021372745,1.66328688,25663.0,25662.0,0.102]
[1694021375211,2.44261888,25663.0,25662.0,0.102]
[1694021375900,3.22195088,25663.0,25662.0,0.102]
[1694021376520,3.24495088,25663.0,25662.0,0.102]
[1694021377192,3.32495088,25663.0,25662.0,0.102]
[1694021377365,3.4176326,25663.0,25662.0,0.102]
[1694021377570,3.46397343,25663.0,25662.0,0.102]
[1694021377761,4.36397343,25663.0,25662.0,0.102]
[1694021378190,4.36397343,25663.0,25662.0,0.1]
[1694021378191,4.35397343,25663.0,25662.0,0.1]
[1694021378403,4.53933687,25663.0,25662.0,0.1]
[1694021378608,4.55733687,25663.0,25662.0,0.102]
[1694021379017,4.57933687,25663.0,25662.0,0.104]
[1694021379235,4.44031432,25663.0,25662.0,0.104]
[1694021380454,4.67201862,25663.0,25662.0,0.104]
[1694021382335,4.48665518,25663.0,25662.0,0.104]
[1694021384516,4.67324946,25663.0,25662.0,0.104]
[1694021384901,4.04445852,25663.0,25662.0,0.104]
[1694021385119,0.65663484,25663.0,25662.0,0.104]
[1694021385298,1.41296684,25663.0,25662.0,0.104]
[1694021386128,2.19229884,25663.0,25662.0,0.104]
[1694021386325,0.61363484,25663.0,25662.0,0.104]
[1694021386535,3.01950828,25663.0,25662.0,0.104]
[1694021386741,3.79884028,25663.0,25662.0,0.104]
[1694021386955,3.75038694,25663.0,25662.0,0.104]
[1694021387310,3.54155436,25663.0,25662.0,0.104]
[1694021387508,3.80946918,25663.0,25662.0,0.104]
[1694021387773,3.03013718,25663.0,25662.0,0.104]
[1694021387979,3.2167457,25663.0,25662.0,0.104]
[1694021388608,3.9960777,25663.0,25662.0,0.104]
[1694021388812,3.80946918,25663.0,25662.0,0.104]
[1694021389440,3.03013718,25663.0,25662.0,0.104]
[1694021390053,3.58665518,25663.0,25662.0,0.104]
[1694021391580,4.5806592,25663.0,25662.0,0.104]
[1694021391829,4.85870436,25663.0,25662.0,0.104]
[1694021392017,4.85870436,25663.0,25662.0,0.004]
[1694021392018,4.5806592,25663.0,25662.0,0.004]
[1694021392212,4.85870436,25663.0,25662.0,0.004]
[1694021392733,0.92,25658.0,25650.0,0.03124189]
[1694021392926,0.1626,25654.0,25651.0,0.1]
[1694021393106,0.779666,25652.0,25651.0,0.265]
[1694021393458,1.67788267,25652.0,25651.0,0.265]
[1694021393863,1.559332,25652.0,25651.0,0.265]
[1694021394064,1.57117045,25652.0,25651.0,0.265]
[1694021394511,1.01371657,25652.0,25651.0,0.265]
[1694021394708,0.23405057,25652.0,25651.0,0.265]
[1694021394861,2.76964857,25652.0,25651.0,0.266]
[1694021395065,0.24505057,25652.0,25651.0,0.268]
[1694021395264,0.02283845,25652.0,25651.0,0.268]
[1694021395480,0.02283845,25652.0,25651.0,0.65464527]
[1694021395713,0.02283845,25652.0,25651.0,0.65264527]
[1694021396068,0.03783845,25652.0,25651.0,0.65464527]
[1694021396704,0.81750445,25652.0,25651.0,0.268]
[1694021397211,2.37683645,25652.0,25651.0,0.268]
[1694021397621,0.03783845,25652.0,25651.0,0.268]
[1694021399842,0.03783845,25652.0,25651.0,0.65464527]
[1694021401208,0.03783845,25652.0,25651.0,2.99373327]
[1694021401409,0.03783845,25652.0,25651.0,2.21403727]
[1694021401621,0.03783845,25652.0,25651.0,2.27997727]
[1694021401876,0.03783845,25652.0,25651.0,2.28021727]
[1694021402079,0.03783845,25652.0,25651.0,2.21403727]
[1694021402274,0.03783845,25652.0,25651.0,2.99373327]
[1694021402482,0.03783845,25652.0,25651.0,3.07785327]
[1694021402685,0.03783845,25652.0,25651.0,3.07887327]
[1694021402889,0.03783845,25652.0,25651.0,3.08205327]
[1694021403159,0.03783845,25652.0,25651.0,4.27509454]
[1694021403341,0.03783845,25652.0,25651.0,4.59339454]
[1694021403554,0.03783845,25652.0,25651.0,4.20122927]
[1694021403775,0.03783845,25652.0,25651.0,4.06442927]
[1694021403955,0.03783845,25652.0,25651.0,4.05824927]
[1694021404076,0.779484,25658.0,25651.0,4.44564927]
[1694021404289,0.91269995,25661.0,25656.0,0.38664527]
[1694021404290,0.22038528,25659.0,25656.0,0.38664527]
[1694021404489,0.22038528,25659.0,25657.0,0.93417211]
[1694021404718,0.04,25661.0,25658.0,0.38664527]
[1694021404909,0.04,25661.0,25659.0,0.15465811]
[1694021405153,0.04,25661.0,25660.0,0.38664527]
[1694021405973,0.3386971,25661.0,25660.0,0.38664527]
[1694021406793,0.3396971,25661.0,25660.0,0.39664527]
[1694021407229,0.001,25661.0,25660.0,0.39664527]
[1694021407434,0.93532,25666.0,25660.0,2.99519427]
[1694021407435,0.09329995,25666.0,25660.0,2.99519427]
[1694021407626,1.07909995,25667.0,25662.0,0.1626]
[1694021407828,1.99631931,25668.0,25662.0,0.1626]
[1694021407829,1.94966934,25668.0,25663.0,0.54130338]
[1694021408028,1.31042826,25668.0,25663.0,1.32063038]
[1694021408176,0.09329995,25667.0,25663.0,1.32063038]
[1694021408369,0.09329995,25667.0,25663.0,1.53822544]
[1694021408728,0.35586999,25667.0,25663.0,0.60424033]
[1694021408935,0.37986999,25667.0,25663.0,0.60424033]
[1694021409144,0.024,25666.0,25663.0,0.38664527]
[1694021409367,0.024,25666.0,25664.0,0.38664527]
[1694021409571,0.29711849,25665.0,25664.0,0.38664527]
[1694021409979,1.81568287,25667.0,25664.0,0.38664527]
[1694021410187,2.59491887,25667.0,25664.0,0.38664527]
[1694021410423,0.25402206,25666.0,25663.0,0.2538]
[1694021410605,2.337813,25665.0,25663.0,0.2538]
[1694021410847,2.47876292,25665.0,25664.0,0.015]
[1694021411678,2.47876292,25665.0,25664.0,0.019]
[1694021411903,2.66436282,25665.0,25663.0,0.2518]
[1694021412106,0.09334784,25664.0,25663.0,0.2518]
[1694021412336,1.65194984,25664.0,25663.0,0.2518]
[1694021412768,1.1176277,25664.0,25663.0,0.2518]
[1694021412992,0.47827662,25664.0,25663.0,0.2518]
[1694021413492,0.13994992,25665.0,25663.0,0.63844527]
[1694021413706,0.02,25664.0,25663.0,0.64044527]
[1694021413907,0.02,25664.0,25663.0,0.2538]
[1694021414561,0.042,25664.0,25663.0,1.814464]
[1694021414956,0.042,25664.0,25663.0,3.23937596]
[1694021414964,0.042,25664.0,25663.0,2.46004396]
[1694021415577,0.042,25664.0,25663.0,1.68071196]
[1694021415796,0.022,25664.0,25663.0,1.41977727]
[1694021416207,0.022,25664.0,25663.0,0.64244527]
[1694021416628,0.022,25664.0,25663.0,0.64044527]
[1694021417328,0.042,25664.0,25663.0,0.64244527]
[1694021418349,1.04205939,25664.0,25663.0,0.64244527]
[1694021419196,0.26275839,25664.0,25663.0,0.64244527]
[1694021419411,1.558584,25665.0,25663.0,0.64244527]
[1694021420181,1.558584,25665.0,25663.0,0.64044527]
[1694021420755,1.579584,25665.0,25663.0,0.64044527]
[1694021420979,2.358874,25665.0,25663.0,0.64244527]
[1694021421594,0.27643931,25664.0,25663.0,0.2558]
[1694021421810,2.61434231,25664.0,25663.0,0.004]
[1694021422433,3.39364331,25664.0,25663.0,0.004]
[1694021422631,3.3868039,25664.0,25663.0,0.002]
[1694021422866,3.67209877,25664.0,25663.0,0.003]
[1694021423053,4.68464964,25664.0,25663.0,0.003]
[1694021423463,4.39935477,25664.0,25663.0,0.002]
[1694021423642,4.21275487,25664.0,25663.0,0.002]
[1694021423867,4.39005487,25664.0,25663.0,0.004]
[1694021424064,4.57663841,25664.0,25663.0,0.004]
[1694021424262,3.79733741,25664.0,25663.0,0.002]
[1694021424471,3.81230882,25664.0,25663.0,0.003]
[1694021424740,3.6107289,25664.0,25663.0,0.002]
[1694021424936,0.04,25663.0,25657.0,0.2518]
[1694021425138,0.04,25663.0,25657.0,0.38664527]
[1694021425139,0.13329733,25661.0,25657.0,0.38664527]
[1694021425352,0.13329733,25661.0,25655.0,0.2685]
[1694021425353,1.933306,25660.0,25655.0,0.2685]
[1694021425561,3.63211,25660.0,25656.0,0.38664527]
[1694021425799,0.09329733,25659.0,25655.0,0.65514527]
[1694021425989,3.23651067,25658.0,25650.0,1.65942]
[1694021426190,0.3178,25657.0,25651.0,0.63804527]
[1694021426407,2.45725767,25656.0,25651.0,0.63804527]
[1694021426617,3.23682667,25656.0,25651.0,0.63804527]
[1694021426830,0.3178,25655.0,25651.0,0.63804527]
[1694021427037,0.1552,25655.0,25651.0,1.41774127]
[1694021427237,0.1552,25655.0,25651.0,2.97713327]
[1694021427445,0.1552,25655.0,25651.0,3.04553327]
[1694021427656,0.1552,25655.0,25651.0,2.19743727]
[1694021427866,1.714352,25655.0,25651.0,0.63804527]
[1694021428058,1.94072835,25655.0,25651.0,0.63804527]
[1694021428643,1.16115235,25655.0,25651.0,1.41773927]
[1694021428868,1.17315235,25655.0,25651.0,1.41873927]
[1694021429067,0.1782,25655.0,25651.0,3.05203127]
[1694021429364,0.1662,25655.0,25651.0,3.68178471]
[1694021429586,0.1782,25655.0,25651.0,3.5274666]
[1694021429792,0.1782,25655.0,25651.0,3.5262066]
[1694021430002,0.1782,25655.0,25651.0,3.5210466]
[1694021430181,0.1782,25655.0,25651.0,3.5207466]
[1694021430384,0.1782,25655.0,25651.0,3.5188866]
[1694021430592,0.1782,25655.0,25651.0,3.5181066]
[1694021430764,0.39850916,25655.0,25651.0,3.3520866]
[1694021430965,0.26850845,25654.0,25651.0,1.41973927]
[1694021431179,0.26850845,25654.0,25651.0,0.64004527]
[1694021431383,0.26850845,25654.0,25651.0,1.41973727]
[1694021431934,0.26850845,25654.0,25651.0,1.41873727]
[1694021432193,0.27050845,25654.0,25651.0,1.41873727]
[1694021432401,0.002,25654.0,25651.0,1.41873727]
[1694021432589,0.002,25654.0,25651.0,1.41973727]
[1694021432590,0.005,25654.0,25651.0,1.41973727]
[1694021432795,0.005,25654.0,25652.0,0.1]
[1694021433081,0.005,25654.0,25653.0,0.38664527]
[1694021433263,0.005,25654.0,25653.0,0.48664527]
[1694021433823,0.002,25654.0,25653.0,0.48664527]
[1694021434238,0.005,25654.0,25653.0,0.48764527]
[1694021434648,0.782605,25654.0,25653.0,0.48764527]
[1694021434849,0.784605,25654.0,25653.0,0.48864527]
[1694021435397,2.62182428,25654.0,25653.0,0.102]
[1694021438230,3.40142928,25654.0,25653.0,0.102]
[1694021439737,3.40142928,25654.0,25653.0,0.002]
[1694021440216,5.2826086,25654.0,25653.0,0.002]
[1694021440559,5.37590593,25654.0,25653.0,0.00191348]
[1694021440745,5.18929834,25654.0,25653.0,0.00191348]
[1694021440954,5.27958612,25654.0,25653.0,0.001]
[1694021441159,0.04,25651.0,25646.0,0.2712]
[1694021441367,3.41261467,25650.0,25642.0,1.659927]
[1694021441575,3.41261467,25650.0,25644.0,0.2737]
[1694021441775,3.41261467,25650.0,25645.0,0.38664527]
[1694021442206,0.04,25647.0,25644.0,0.2737]
[1694021442420,0.04,25647.0,25641.0,0.019796]
[1694021442421,2.339544,25646.0,25642.0,0.2737]
[1694021442620,0.11855067,25645.0,25643.0,0.38664527]
[1694021442823,0.779909,25644.0,25643.0,0.38664527]
[1694021443034,0.779897,25645.0,25643.0,0.38664527]
[1694021443035,1.559804,25645.0,25643.0,0.38664527]
[1694021444384,1.559804,25645.0,25643.0,0.40164527]
[1694021444385,1.561804,25645.0,25643.0,0.40164527]
[1694021444995,0.002,25645.0,25643.0,0.40164527]
[1694021445201,0.78388,25645.0,25643.0,0.40664527]
[1694021445618,1.56376,25645.0,25643.0,0.40664527]
[1694021446175,2.34364,25645.0,25643.0,0.40664527]
[1694021446377,2.57749581,25645.0,25643.0,0.02]
[1694021446581,3.35737581,25645.0,25643.0,0.02]
[1694021446990,0.22195043,25644.0,25643.0,0.02]
[1694021447190,2.56167743,25644.0,25643.0,0.02]
[1694021447389,2.339727,25644.0,25643.0,0.02]
[1694021447809,2.339727,25644.0,25643.0,0.015]
[1694021448244,2.342727,25644.0,25643.0,0.02]
[1694021448644,0.003,25644.0,25643.0,0.39164527]
[1694021449169,0.005,25644.0,25643.0,0.40864527]
[1694021456763,0.005,25644.0,25643.0,0.7128554]
[1694021456966,0.005,25644.0,25643.0,3.2910524]
[1694021457175,0.005,25644.0,25643.0,5.35573507]
[1694021457438,0.005,25644.0,25643.0,5.66251507]
[1694021457607,0.005,25644.0,25643.0,5.66245507]
[1694021457804,0.005,25644.0,25643.0,5.62937507]
[1694021458009,0.005,25644.0,25643.0,5.79359507]
[1694021458264,1.559349,25652.0,25644.0,0.1]
[1694021458460,1.559349,25652.0,25649.0,0.1626]
[1694021458720,1.559349,25652.0,25650.0,0.54130338]
[1694021458904,0.779674,25652.0,25650.0,0.54130338]
[1694021459228,0.779674,25652.0,25650.0,0.38664527]
[1694021459626,0.791674,25652.0,25650.0,0.38664527]
[1694021460141,0.1634,25653.0,25650.0,0.38664527]
[1694021460334,0.012,25652.0,25650.0,0.38764527]
[1694021460547,0.037,25652.0,25650.0,0.38764527]
[1694021461148,0.012,25652.0,25650.0,0.38764527]
[1694021461364,0.012,25652.0,25650.0,0.38864527]
[1694021461581,0.012,25652.0,25651.0,0.23436]
[1694021461769,0.012,25652.0,25651.0,2.97329327]
[1694021461982,0.012,25652.0,25651.0,2.97167327]
[1694021462200,0.012,25652.0,25651.0,2.97161327]
[1694021462448,0.012,25652.0,25651.0,2.96801327]
[1694021462652,0.012,25652.0,25651.0,2.18987727]
[1694021462854,0.012,25652.0,25651.0,1.32894127]
[1694021463054,0.012,25652.0,25651.0,0.54924527]
[1694021463272,2.5751184,25655.0,25651.0,0.54924527]
[1694021463505,2.5751184,25655.0,25652.0,0.66084527]
[1694021463726,2.7382184,25655.0,25652.0,0.66084527]
[1694021463933,0.009,25653.0,25652.0,0.66084527]
[1694021464141,0.779609,25654.0,25652.0,0.66084527]
[1694021464368,1.9586164,25655.0,25652.0,0.66084527]
[1694021464630,1.9676164,25655.0,25652.0,0.66084527]
[1694021464876,1.9676164,25655.0,25652.0,0.66184527]
[1694021465088,1.9676164,25655.0,25652.0,0.66884527]
[1694021466492,1.9676164,25655.0,25652.0,0.66184527]
[1694021466878,1.9766164,25655.0,25652.0,0.66284527]
[1694021468169,1.9766164,25655.0,25654.0,0.1217]
[1694021468357,1.9766164,25655.0,25654.0,0.50834527]
[1694021468582,2.519867,25655.0,25654.0,0.50834527]
[1694021469418,2.72840807,25655.0,25654.0,0.50834527]
[1694021469618,2.73740807,25655.0,25654.0,0.50934527]
[1694021470083,1.94881607,25655.0,25654.0,0.38764527]
[1694021470264,1.95781607,25655.0,25654.0,0.38864527]
[1694021470879,0.1811,25655.0,25654.0,0.38864527]
[1694021471120,0.018,25655.0,25654.0,0.51034527]
[1694021471350,0.018,25655.0,25654.0,2.34583944]
[1694021471551,0.018,25655.0,25654.0,3.19834444]
[1694021471766,0.018,25655.0,25654.0,3.20044444]
[1694021471966,0.018,25655.0,25654.0,2.92704027]
[1694021472166,0.018,25655.0,25654.0,2.14743527]
[1694021472379,0.018,25655.0,25654.0,2.14485527]
[1694021472614,0.018,25655.0,25654.0,2.14335527]
[1694021472775,0.018,25655.0,25654.0,2.14413527]
[1694021472991,0.018,25655.0,25654.0,1.36099027]
[1694021473179,0.018,25655.0,25654.0,0.57688527]
[1694021473388,0.018,25655.0,25654.0,0.51034527]
[1694021474193,0.018,25655.0,25654.0,0.38864527]
[1694021474194,0.797575,25655.0,25654.0,0.38864527]
[1694021474398,1.82905724,25655.0,25654.0,0.38864527]
[1694021474728,0.018,25655.0,25654.0,0.38864527]
[1694021476784,0.797575,25655.0,25654.0,0.38864527]
[1694021480140,2.59697567,25655.0,25654.0,0.38864527]
[1694021480413,2.69609772,25655.0,25654.0,0.38864527]
[1694021481292,3.47567272,25655.0,25654.0,0.38864527]
[1694021489257,3.258,25655.0,25654.0,0.002]
[1694021489436,3.4218,25655.0,25654.0,0.002]
[1694021489590,3.63501889,25655.0,25654.0,0.002]
[1694021490794,3.4618,25655.0,25654.0,0.002]
[1694021490990,3.59509269,25655.0,25654.0,0.002]
[1694021492045,3.58609269,25655.0,25654.0,0.001]
[1694021492248,3.76135855,25655.0,25654.0,0.003]
[1694021492418,4.05235855,25655.0,25654.0,0.002]
[1694021492822,4.07235855,25655.0,25654.0,0.004]
[1694021493033,4.05235855,25655.0,25654.0,0.002]
[1694021493238,4.05241591,25655.0,25654.0,0.002]
[1694021493422,4.07241591,25655.0,25654.0,0.004]
[1694021493613,3.97906586,25655.0,25654.0,0.004]
[1694021493817,3.95506586,25655.0,25654.0,0.002]
[1694021494521,3.97906586,25655.0,25654.0,0.004]
[1694021494932,0.04,25651.0,25647.0,0.2696]
[1694021495072,4.05721567,25650.0,25648.0,0.38664527]
[1694021495450,0.1217,25649.0,25648.0,0.38664527]
[1694021495676,0.1217,25649.0,25644.0,0.2508]
[1694021495677,3.240728,25649.0,25644.0,0.2508]
[1694021495831,0.40355067,25648.0,25645.0,0.38664527]
[1694021496025,0.1217,25646.0,25645.0,0.38664527]
[1694021496233,1.681396,25646.0,25645.0,0.38664527]
[1694021496406,3.241092,25646.0,25645.0,0.38664527]
[1694021496604,3.241092,25646.0,25644.0,0.2508]
[1694021496854,3.241092,25646.0,25641.0,0.019796]
[1694021496855,0.1217,25645.0,25641.0,0.019796]
[1694021497056,3.272592,25646.0,25642.0,0.63914527]
[1694021497057,0.1217,25643.0,25642.0,0.63914527]
[1694021497268,2.339817,25643.0,25642.0,0.63914527]
[1694021497462,2.339817,25643.0,25641.0,0.019796]
[1694021497463,3.241456,25643.0,25641.0,0.019796]
[1694021497666,3.241456,25643.0,25641.0,0.40644127]
[1694021497913,3.241456,25643.0,25641.0,0.40744127]
[1694021498531,3.241456,25643.0,25641.0,0.40644127]
[1694021498746,3.241456,25643.0,25641.0,0.41144127]
[1694021498938,3.242456,25643.0,25641.0,0.41144127]
[1694021499145,0.780939,25643.0,25642.0,0.38664527]
[1694021499349,1.560878,25643.0,25642.0,0.38664527]
[1694021499884,2.340817,25643.0,25642.0,0.38664527]
[1694021500294,2.339817,25643.0,25642.0,0.38664527]
[1694021500514,2.35074707,25643.0,25642.0,0.38664527]
[1694021500721,2.35174707,25643.0,25642.0,0.39564527]
[1694021500927,3.13168607,25643.0,25642.0,0.009]
[1694021501102,2.47344707,25643.0,25642.0,0.009]
[1694021502248,3.25338607,25643.0,25642.0,0.009]
[1694021502704,3.49650023,25643.0,25642.0,0.009]
[1694021503253,2.47344707,25643.0,25642.0,0.009]
[1694021503458,1.57180807,25643.0,25642.0,0.39564527]
[1694021504238,2.35174707,25643.0,25642.0,0.39564527]
[1694021506071,3.380323,25643.0,25642.0,0.009]
[1694021506279,3.502023,25643.0,25642.0,0.009]
[1694021509391,3.542023,25643.0,25642.0,0.009]
[1694021512988,3.29338607,25643.0,25642.0,0.009]
[1694021513226,2.39174707,25643.0,25642.0,0.009]
[1694021514890,0.01193007,25643.0,25642.0,0.39564527]
[1694021516354,0.79186907,25643.0,25642.0,0.39564527]
[1694021517006,0.01193007,25643.0,25642.0,0.39564527]
[1694021517493,0.01193007,25643.0,25642.0,2.73555527]
[1694021517689,0.01193007,25643.0,25642.0,3.72392527]
[1694021517890,0.01193007,25643.0,25642.0,3.71894527]
[1694021518109,0.01193007,25643.0,25642.0,3.70640527]
[1694021518333,0.01193007,25643.0,25642.0,3.70322527]
[1694021518530,0.01193007,25643.0,25642.0,3.63722527]
[1694021519402,0.01193007,25643.0,25642.0,2.73555527]
[1694021520259,0.01193007,25643.0,25642.0,1.95558527]
[1694021520471,0.01193007,25643.0,25642.0,0.39564527]
[1694021520679,1.84040208,25643.0,25642.0,0.39564527]
[1694021522352,0.01193007,25643.0,25642.0,0.39564527]
[1694021524220,0.79186907,25643.0,25642.0,0.39564527]
[1694021525869,1.57180807,25643.0,25642.0,0.39564527]
[1694021529064,2.35174707,25643.0,25642.0,0.39564527]
[1694021529490,3.53213056,25643.0,25642.0,0.009]
[1694021532106,2.75219156,25643.0,25642.0,0.009]
[1694021532532,3.53213056,25643.0,25642.0,0.009]
[1694021533009,2.75219156,25643.0,25642.0,0.009]
[1694021535062,2.47344707,25643.0,25642.0,0.009]
[1694021537217,0.01193007,25643.0,25642.0,0.009]
[1694021539119,0.79186907,25643.0,25642.0,0.009]
[1694021539831,1.57180807,25643.0,25642.0,0.009]
[1694021540840,1.72940807,25643.0,25642.0,0.009]
[1694021543025,0.16953007,25643.0,25642.0,0.39564527]
[1694021543297,0.01193007,25643.0,25642.0,1.95558527]
[1694021543496,0.01193007,25643.0,25642.0,2.73555527]
[1694021544711,0.01193007,25643.0,25642.0,1.17561527]
[1694021545531,0.01193007,25643.0,25642.0,0.39564527]
[1694021545740,1.91867202,25643.0,25642.0,0.009]
[1694021545948,2.99496018,25643.0,25642.0,0.009]
[1694021546341,2.90172741,25643.0,25642.0,0.009]
[1694021546773,2.12178841,25643.0,25642.0,0.009]
[1694021547058,0.26206342,25643.0,25642.0,0.78897]
[1694021547298,0.26206342,25643.0,25642.0,1.17561527]
[1694021547299,0.40191258,25643.0,25642.0,1.17561527]
[1694021548182,0.40191258,25643.0,25642.0,0.39564527]
[1694021548415,0.30827923,25643.0,25642.0,0.39564527]
[1694021549024,2.31725334,25643.0,25642.0,0.39564527]
[1694021549242,2.41048612,25643.0,25642.0,0.39564527]
[1694021549886,3.00395957,25643.0,25642.0,0.009]
[1694021551560,3.90559857,25643.0,25642.0,0.009]
[1694021551970,3.99221496,25643.0,25642.0,0.009]
[1694021552192,3.75551663,25643.0,25642.0,0.009]
[1694021552404,3.90754669,25643.0,25642.0,0.009]
[1694021552660,4.20754669,25643.0,25642.0,0.009]
[1694021552881,0.06,25638.0,25637.0,0.01989699]
[1694021553095,4.22371067,25638.0,25637.0,0.01989699]
[1694021553331,5.02358831,25638.0,25637.0,0.01989699]
[1694021553537,4.90503764,25638.0,25637.0,0.01989699]
[1694021553770,5.80503764,25638.0,25637.0,0.01989699]
[1694021554171,6.08570604,25638.0,25637.0,0.01989699]
[1694021554431,6.08570604,25638.0,25637.0,0.02189699]
[1694021554432,6.10970604,25638.0,25637.0,0.02189699]
[1694021554623,6.08570604,25638.0,25637.0,0.01989699]
[1694021555065,6.10970604,25638.0,25637.0,0.02189699]
[1694021555267,6.13370604,25638.0,25637.0,0.02289699]
[1694021555668,5.85303764,25638.0,25637.0,0.02289699]
[1694021556946,6.08669845,25638.0,25637.0,0.02289699]
[1694021557726,6.03989832,25638.0,25637.0,0.02289699]
[1694021558814,5.9931388,25638.0,25637.0,0.02289699]
[1694021559245,6.08653628,25638.0,25637.0,0.02289699]
[1694021559450,5.9931388,25638.0,25637.0,0.02289699]
[1694021559805,5.94641292,25638.0,25637.0,0.02289699]
[1694021560881,4.83741468,25638.0,25637.0,0.02289699]
[1694021560988,4.86031168,25638.0,25637.0,0.02289699]
[1694021561611,4.58928937,25638.0,25637.0,0.02289699]
[1694021562421,4.84083077,25638.0,25637.0,0.02289699]
[1694021562839,4.06073877,25638.0,25637.0,0.02289699]
[1694021563250,4.03773877,25638.0,25637.0,0.02289699]
[1694021564071,3.78619737,25638.0,25637.0,0.02289699]
[1694021565668,3.80919737,25638.0,25637.0,0.02289699]
[1694021568130,4.19584264,25638.0,25637.0,0.02289699]
[1694021571922,4.89584264,25638.0,25637.0,0.02289699]
[1694021572543,0.66,25637.0,25636.0,0.01989699]
[1694021572718,4.61183327,25637.0,25636.0,0.01989699]
[1694021573359,4.6241083,25637.0,25636.0,0.01989699]
[1694021573568,4.6481083,25637.0,25636.0,0.02089699]
[1694021573772,5.3481083,25637.0,25636.0,0.02089699]
[1694021573975,0.04,25633.0,25632.0,0.019796]
[1694021574189,4.08592,25633.0,25632.0,0.019796]
[1694021575011,4.32535503,25633.0,25632.0,0.019796]
[1694021575216,4.33135503,25633.0,25632.0,0.020796]
[1694021575424,4.34363006,25633.0,25632.0,0.020796]
[1694021576496,4.34963006,25633.0,25632.0,0.021796]
[1694021576905,3.56938606,25633.0,25632.0,0.021796]
[1694021577747,1.86419806,25633.0,25632.0,0.021796]
[1694021578183,1.62476303,25633.0,25632.0,0.021796]
[1694021579138,2.40500703,25633.0,25632.0,0.021796]
[1694021579363,3.42190579,25633.0,25632.0,0.021796]
[1694021579607,3.54360579,25633.0,25632.0,0.021796]
[1694021582154,2.76336179,25633.0,25632.0,0.021796]
[1694021582367,1.08117379,25633.0,25632.0,0.021796]
[1694021582573,1.86141779,25633.0,25632.0,0.021796]
[1694021582770,1.62476303,25633.0,25632.0,0.021796]
[1694021583193,0.06427503,25633.0,25632.0,0.021796]
[1694021583590,0.84451903,25633.0,25632.0,0.021796]
[1694021584439,0.06427503,25633.0,25632.0,0.021796]
[1694021584645,0.84451903,25633.0,25632.0,0.021796]
[1694021585281,0.06427503,25633.0,25632.0,0.40844127]
[1694021585488,1.62476303,25633.0,25632.0,0.40844127]
[1694021588980,0.02427503,25633.0,25632.0,2.74926327]
[1694021589322,0.012,25633.0,25632.0,2.87096327]
[1694021589474,0.012,25633.0,25632.0,2.09068927]
[1694021589898,0.012,25633.0,25632.0,1.31041527]
[1694021590170,0.012,25633.0,25632.0,0.53014127]
[1694021591703,0.012,25633.0,25632.0,1.31041527]
[1694021593148,0.012,25633.0,25632.0,2.74926327]
[1694021593326,0.012,25633.0,25632.0,3.65123727]
[1694021593535,0.012,25633.0,25632.0,3.71855727]
[1694021593747,0.012,25633.0,25632.0,3.65123727]
[1694021593977,0.012,25633.0,25632.0,2.87096327]
[1694021595484,0.012,25633.0,25632.0,1.96898927]
[1694021595948,0.012,25633.0,25632.0,2.74926327]
[1694021596154,0.012,25633.0,25632.0,3.88699727]
[1694021596358,0.012,25633.0,25632.0,5.00839896]
[1694021596576,0.012,25633.0,25632.0,5.01469896]
[1694021596799,0.012,25633.0,25632.0,5.10472849]
[1694021597048,0.006,25633.0,25632.0,5.61031376]
[1694021597255,0.006,25633.0,25632.0,6.78904986]
[1694021597462,0.006,25633.0,25632.0,6.6155908]
[1694021597660,0.006,25633.0,25632.0,6.6146308]
[1694021597872,0.006,25633.0,25632.0,6.66003557]
[1694021598082,0.2268832,25641.0,25634.0,0.08]
[1694021598293,1.83344844,25642.0,25634.0,0.08]
[1694021598294,0.13337528,25642.0,25638.0,0.1217]
[1694021598489,0.09337528,25642.0,25639.0,2.10141338]
[1694021598700,0.09337528,25642.0,25639.0,3.26217438]
[1694021599130,3.04186914,25643.0,25639.0,3.26217438]
[1694021599544,2.90176798,25643.0,25639.0,3.26217438]
[1694021599770,2.90176798,25643.0,25639.0,3.10751627]
[1694021599977,0.26679497,25642.0,25639.0,2.32945527]
[1694021600201,1.02276697,25642.0,25639.0,2.32745527]
[1694021600638,1.02276697,25642.0,25639.0,2.20775527]
[1694021600850,1.02276697,25642.0,25639.0,2.20575527]
[1694021601040,1.02276697,25642.0,25639.0,2.20775527]
[1694021601244,1.06076697,25642.0,25639.0,2.20875527]
[1694021601678,1.03776697,25642.0,25639.0,2.20775527]
[1694021601884,1.05276697,25642.0,25639.0,2.20875527]
[1694021603327,1.21426697,25642.0,25639.0,2.20875527]
[1694021603558,0.24534442,25641.0,25639.0,0.64864527]
[1694021603788,2.340093,25640.0,25639.0,0.64864527]